[Event "EYCC Open-U16 2019"]
[Site "Bratislava"]
[Date "2019.08.09"]
[Round "8.42"]
[White "Darmogray, Makar"]
[Black "Mica, Marek"]
[Result "1/2-1/2"]
[ECO "C18"]
[WhiteElo "2004"]
[BlackElo "2222"]
[Annotator "NA"]
[PlyCount "180"]
[EventDate "2019.08.02"]
[EventType "swiss"]
[EventCountry "SVK"]
[SourceTitle "playchess.com"]
[Source "ChessBase"]
[SourceQuality "1"]
[TimeControl "40/5400+30:1800+30"]

1. e4 {[%emt 0:00:00]} e6 {[%emt 0:00:00]} 2. d4 {[%emt 0:00:00]} d5 {[%emt 0:00:00]} 3. Nc3 {[%emt 0:00:23]} Bb4 {[%emt 0:00:00]} 4. e5 {[%emt 0:00:26]} c5 {[%emt 0:00:23]} 5. a3 {[%emt 0:00:16]} Bxc3+ {[%emt 0:00:07]} 6. bxc3 {[%emt 0:00:02]} Qc7 {[%emt 0:00:12]} 7. Qd2 {[%emt 0:04:05]} Ne7 {[%emt 0:01:02]} 8. f4 {[%emt 0:06:09]} b6 {[%emt 0:02:44]} 9. Nf3 {[%emt 0:05:10]} Ba6 {[%emt 0:03:04]} 10. Bd3 {[%emt 0:13:13]} Bxd3 {[%emt 0:00:24]} 11. cxd3 {[%emt 0:00:29]} c4 {[%emt 0:04:52]} 12. O-O {[%emt 0:04:47]} cxd3 {[%emt 0:06:45]} 13. Qxd3 {[%emt 0:00:33]} Nbc6 {[%emt 0:00:34]} 14. a4 {[%emt 0:14:47]} Na5 {[%emt 0:04:15]} 15. Nd2 {[%emt 0:04:02]} Rc8 {[%emt 0:03:13]} 16. Rf3 {[%emt 0:02:39]} Qd7 {[%emt 0:02:27]} 17. g4 {[%emt 0:03:29]} g6 {[%emt 0:03:58]} 18. Rh3 {[%emt 0:08:49]} Nc4 {[%emt 0:04:09]} 19. Nf3 {[%emt 0:06:20]} Kf8 {[%emt 0:02:31]} 20. Ng5 {[%emt 0:05:18]} Kg7 {[%emt 0:04:57]} 21. Ra2 {[%emt 0:01:56]} h6 {[%emt 0:03:01]} 22. Nf3 {[%emt 0:00:23]} Rh7 {[%emt 0:00:55]} 23. Nh4 {[%emt 0:02:22]} h5 {[%emt 0:02:22]} 24. Ng2 {[%emt 0:05:08]} hxg4 {[%emt 0:07:14]} 25. Rxh7+ {[%emt 0:00:06]} Kxh7 {[%emt 0:00:07]} 26. Qg3 {[%emt 0:00:17]} Nf5 {[%emt 0:01:18]} 27. Qxg4 {[%emt 0:00:17]} Kg7 {[%emt 0:01:10]} 28. Nh4 {[%emt 0:00:51]} Nxh4 {[%emt 0:01:04]} 29. Qxh4 {[%emt 0:00:07]} Qd8 {[%emt 0:00:36]} 30. Qg3 {[%emt 0:02:04]} Qh8 {[%emt 0:03:53]} 31. Qg4 {[%emt 0:01:25]} Na5 {[%emt 0:16:29]} 32. Bd2 {[%emt 0:00:47]} Qh5 {[%emt 0:03:51]} 33. Qxh5 {[%emt 0:02:43]} gxh5 {[%emt 0:00:06]} 34. Be1 {[%emt 0:01:35]} Rg8 {[%emt 0:03:44]} 35. Rg2+ {[%emt 0:04:00]} Kh7 {[%emt 0:02:37]} 36. Rxg8 {[%emt 0:00:05]} Kxg8 {[%emt 0:00:05]} 37. Bd2 {[%emt 0:00:08]} Kg7 {[%emt 0:00:42]} 38. Kf2 {[%emt 0:01:02]} Kg6 {[%emt 0:00:44]} 39. Kg3 {[%emt 0:01:15]} Nb3 {[%emt 0:05:51]} 40. Be3 {[%emt 0:00:00]} Na5 {[%emt 0:00:00]} 41. Bd2 {[%emt 0:07:13]} Nc6 {[%emt 0:04:11]} 42. Bc1 {[%emt 0:03:45]} Ne7 {[%emt 0:00:56]} 43. Ba3 {[%emt 0:08:20]} Nf5+ {[%emt 0:02:33]} 44. Kf3 {[%emt 0:00:12]} Kg7 {[%emt 0:00:09]} 45. Bd6 {[%emt 0:01:49]} Nh6 {[%emt 0:07:11]} 46. h3 {[%emt 0:04:27]} Nf5 {[%emt 0:00:53]} 47. Bb8 {[%emt 0:00:54]} a6 {[%emt 0:00:05]} 48. Bc7 {[%emt 0:00:17]} b5 {[%emt 0:00:04]} 49. axb5 {[%emt 0:00:05]} axb5 {[%emt 0:00:04]} 50. Bd6 {[%emt 0:01:12]} f6 {[%emt 0:01:09]} 51. Bc7 {[%emt 0:01:19]} fxe5 {[%emt 0:02:17]} 52. fxe5 {[%emt 0:02:07]} Ne7 {[%emt 0:00:13]} 53. Bd8 {[%emt 0:02:01]} Nc6 {[%emt 0:00:38]} 54. Bb6 {[%emt 0:03:17]} b4 {[%emt 0:00:12]} 55. cxb4 {[%emt 0:00:23]} Nxb4 {[%emt 0:00:05]} 56. Kf4 {[%emt 0:01:23]} Kg6 {[%emt 0:00:13]} 57. Ba5 {[%emt 0:01:11]} Nd3+ {[%emt 0:01:43]} 58. Ke3 {[%emt 0:00:02]} Nb2 {[%emt 0:01:21]} 59. Kf4 {[%emt 0:00:02]} Nd1 {[%emt 0:01:20]} 60. Be1 {[%emt 0:00:36]} Nb2 {[%emt 0:00:18]} 61. Bc3 {[%emt 0:00:26]} Nc4 {[%emt 0:01:06]} 62. Bb4 {[%emt 0:00:23]} Nb6 {[%emt 0:01:05]} 63. Bc5 {[%emt 0:00:17]} Na4 {[%emt 0:01:20]} 64. Bb4 {[%emt 0:00:37]} Nb2 {[%emt 0:00:07]} 65. Bc3 {[%emt 0:00:51]} Nd1 {[%emt 0:00:17]} 66. Be1 {[%emt 0:00:14]} Kh6 {[%emt 0:00:20]} 67. Bd2 {[%emt 0:00:38]} Nb2 {[%emt 0:02:05]} 68. Ba5 {[%emt 0:00:51]} Na4 {[%emt 0:01:23]} 69. Bb4 {[%emt 0:00:36]} Nb2 {[%emt 0:02:39]} 70. Bc5 {[%emt 0:00:12]} Kg6 {[%emt 0:01:16]} 71. Ba7 {[%emt 0:00:29]} Nd1 {[%emt 0:00:47]} 72. Bc5 {[%emt 0:01:14]} Nc3 {[%emt 0:01:09]} 73. Bb6 {[%emt 0:00:44]} Ne4 {[%emt 0:01:56]} 74. Ba7 {[%emt 0:00:43]} Kf7 {[%emt 0:00:55]} 75. Bb6 {[%emt 0:00:16]} Ke7 {[%emt 0:01:04]} 76. Ba5 {[%emt 0:00:37]} Kd7 {[%emt 0:00:49]} 77. h4 {[%emt 0:00:13]} Kc6 {[%emt 0:00:20]} 78. Bd8 {[%emt 0:00:15]} Kb5 {[%emt 0:00:23]} 79. Ke3 {[%emt 0:00:15]} Kc4 {[%emt 0:00:14]} 80. Bb6 {[%emt 0:00:46]} Kc3 {[%emt 0:00:35]} 81. Bc5 {[%emt 0:00:41]} Ng3 {[%emt 0:01:51]} 82. Kf4 {[%emt 0:00:10]} Ne4 {[%emt 0:01:41]} 83. Ke3 {[%emt 0:00:06]} Kc4 {[%emt 0:00:41]} 84. Bb6 {[%emt 0:00:13]} Kb3 {[%emt 0:01:54]} 85. Kd3 {[%emt 0:00:30]} Kb2 {[%emt 0:00:31]} 86. Ba5 {[%emt 0:00:42]} Ng3 {[%emt 0:01:58]} 87. Be1 {[%emt 0:01:32]} Nf5 {[%emt 0:01:09]} 88. Bf2 {[%emt 0:00:22]} Kb3 {[%emt 0:00:45]} 89. Be1 {[%emt 0:00:14]} Kb2 {[%emt 0:00:50]} 90. Bf2 {[%emt 0:00:26]} Kb3 {[%emt 0:05:33] Ke4} 1/2-1/2

[Event "EYCC Open-U16 2019"]
[Site "Bratislava"]
[Date "2019.08.09"]
[Round "8.43"]
[White "Vujovic, Savo"]
[Black "Pobor, Milo"]
[Result "1/2-1/2"]
[ECO "D37"]
[WhiteElo "2023"]
[BlackElo "2067"]
[Annotator "NA"]
[PlyCount "44"]
[EventDate "2019.08.02"]
[EventType "swiss"]
[EventCountry "SVK"]
[SourceTitle "playchess.com"]
[Source "ChessBase"]
[SourceQuality "1"]
[TimeControl "40/5400+30:1800+30"]

1. d4 {[%emt 0:00:00]} Nf6 {[%emt 0:00:00]} 2. c4 {[%emt 0:00:00]} e6 {[%emt 0:00:00]} 3. Nc3 {[%emt 0:00:11]} d5 {[%emt 0:00:37]} 4. Nf3 {[%emt 0:00:15]} Nbd7 {[%emt 0:00:25]} 5. Bg5 {[%emt 0:00:12]} Be7 {[%emt 0:00:05]} 6. e3 {[%emt 0:00:11]} h6 {[%emt 0:02:02]} 7. Bh4 {[%emt 0:00:20]} O-O {[%emt 0:01:07]} 8. Rc1 {[%emt 0:00:12]} dxc4 {[%emt 0:01:13]} 9. Bxc4 {[%emt 0:00:21]} a6 {[%emt 0:00:34]} 10. a4 {[%emt 0:00:18]} c5 {[%emt 0:00:41]} 11. O-O {[%emt 0:02:08]} cxd4 {[%emt 0:03:57]} 12. Nxd4 {[%emt 0:01:34]} Nb6 {[%emt 0:00:26]} 13. Be2 {[%emt 0:00:54]} Nbd5 {[%emt 0:05:19]} 14. Qb3 {[%emt 0:01:50]} Nxc3 {[%emt 0:02:19]} 15. bxc3 {[%emt 0:01:06]} Nd5 {[%emt 0:02:16]} 16. Bxe7 {[%emt 0:00:13]} Nxe7 {[%emt 0:00:46]} 17. Rfd1 {[%emt 0:00:50]} Qc7 {[%emt 0:00:47]} 18. Qa3 {[%emt 0:03:05]} Nc6 {[%emt 0:02:17]} 19. Bf3 {[%emt 0:00:57]} Nxd4 {[%emt 0:01:23]} 20. cxd4 {[%emt 0:00:15]} Qd7 {[%emt 0:01:31]} 21. d5 {[%emt 0:02:49]} exd5 {[%emt 0:02:11]} 22. Rxd5 {[%emt 0:00:09]} Qe6 {[%emt 0:01:10]} 1/2-1/2

[Event "EYCC Open-U16 2019"]
[Site "Bratislava"]
[Date "2019.08.09"]
[Round "8.44"]
[White "Sargsyan, Sargis Vach."]
[Black "Gomez Carreno, Martin"]
[Result "1-0"]
[ECO "A44"]
[WhiteElo "1923"]
[BlackElo "2078"]
[Annotator "NA"]
[PlyCount "81"]
[EventDate "2019.08.02"]
[EventType "swiss"]
[EventCountry "SVK"]
[SourceTitle "playchess.com"]
[Source "ChessBase"]
[SourceQuality "1"]
[TimeControl "40/5400+30:1800+30"]

1. d4 {[%emt 0:00:00]} c5 {[%emt 0:00:00]} 2. d5 {[%emt 0:00:00]} e5 {[%emt 0:00:00]} 3. e4 {[%emt 0:00:00]} d6 {[%emt 0:00:00]} 4. Nc3 {[%emt 0:00:00]} g6 {[%emt 0:00:20]} 5. Nf3 {[%emt 0:00:00]} Bg7 {[%emt 0:00:08]} 6. Bb5+ {[%emt 0:00:36]} Nd7 {[%emt 0:00:50]} 7. a4 {[%emt 0:00:07]} a6 8. Be2 {[%emt 0:00:06]} Ne7 {[%emt 0:06:47]} 9. O-O {[%emt 0:00:18]} O-O {[%emt 0:00:10]} 10. Nd2 {[%emt 0:00:19]} f5 {[%emt 0:03:54]} 11. Nc4 {[%emt 0:00:20]} Nb6 {[%emt 0:06:43]} 12. Nxb6 {[%emt 0:00:57]} Qxb6 {[%emt 0:00:02]} 13. exf5 {[%emt 0:00:09]} Bxf5 {[%emt 0:05:09]} 14. a5 {[%emt 0:01:11]} Qc7 {[%emt 0:01:52]} 15. Bd3 {[%emt 0:01:36]} Rae8 {[%emt 0:28:33]} 16. Be4 {[%emt 0:01:50]} Kh8 {[%emt 0:00:42]} 17. f3 {[%emt 0:01:11]} Ng8 {[%emt 0:01:49]} 18. Qd3 {[%emt 0:11:18]} Bh6 {[%emt 0:03:17]} 19. Bxh6 {[%emt 0:02:29]} Nxh6 {[%emt 0:00:02]} 20. Qe3 {[%emt 0:00:36]} Qg7 {[%emt 0:02:27]} 21. Ra3 {[%emt 0:03:46]} Ng8 {[%emt 0:03:18]} 22. g4 {[%emt 0:11:08]} Bc8 {[%emt 0:02:19]} 23. Rb3 {[%emt 0:04:52]} Nf6 {[%emt 0:01:34]} 24. Rb6 {[%emt 0:01:10]} Qe7 {[%emt 0:04:30]} 25. Qh6 {[%emt 0:05:37]} Nd7 {[%emt 0:02:55]} 26. Rb3 {[%emt 0:00:26]} Rf4 {[%emt 0:15:57]} 27. Ne2 {[%emt 0:01:07]} Rf7 {[%emt 0:01:08]} 28. g5 {[%emt 0:04:19]} Nf8 {[%emt 0:01:24]} 29. Ng3 {[%emt 0:03:40]} Bf5 {[%emt 0:02:13]} 30. Rb6 {[%emt 0:02:04]} Rd8 {[%emt 0:01:16]} 31. c4 {[%emt 0:01:45]} Bc8 {[%emt 0:02:58]} 32. h4 {[%emt 0:02:47]} Qd7 {[%emt 0:02:12]} 33. Kf2 {[%emt 0:01:20]} Rf4 {[%emt 0:00:59]} 34. Rh1 {[%emt 0:01:49]} Qg7 {[%emt 0:00:47]} 35. Qxg7+ {[%emt 0:00:29]} Kxg7 {[%emt 0:00:01]} 36. h5 {[%emt 0:02:36]} Rf7 {[%emt 0:00:39]} 37. hxg6 {[%emt 0:00:06]} hxg6 {[%emt 0:00:41]} 38. Rh6 {[%emt 0:00:04]} Rc7 {[%emt 0:00:52]} 39. Ke3 {[%emt 0:00:50]} Rf7 {[%emt 0:00:01]} 40. Bd3 {[%emt 0:00:00]} Rc7 {[%emt 0:00:00]} 41. Bxg6 1-0

[Event "EYCC Open-U16 2019"]
[Site "Bratislava"]
[Date "2019.08.09"]
[Round "8.45"]
[White "Silich, Yahor"]
[Black "Magold, Victor"]
[Result "1-0"]
[ECO "B40"]
[WhiteElo "2100"]
[BlackElo "1962"]
[Annotator "NA"]
[PlyCount "87"]
[EventDate "2019.08.02"]
[EventType "swiss"]
[EventCountry "SVK"]
[SourceTitle "playchess.com"]
[Source "ChessBase"]
[SourceQuality "1"]
[TimeControl "40/5400+30:1800+30"]

1. e4 {[%emt 0:00:00]} c5 {[%emt 0:00:00]} 2. Nf3 {[%emt 0:00:00]} e6 {[%emt 0:00:00]} 3. Nc3 {[%emt 0:00:00]} a6 {[%emt 0:00:43]} 4. g3 {[%emt 0:00:49]} Nc6 {[%emt 0:03:12]} 5. Bg2 {[%emt 0:01:48]} Nf6 {[%emt 0:07:04]} 6. O-O {[%emt 0:02:53]} d5 {[%emt 0:03:36]} 7. exd5 {[%emt 0:08:44]} Nxd5 {[%emt 0:01:28]} 8. Ne4 {[%emt 0:02:08]} Be7 {[%emt 0:08:24]} 9. d3 {[%emt 0:06:58]} O-O {[%emt 0:04:11]} 10. a4 {[%emt 0:07:37]} b6 {[%emt 0:12:13]} 11. Nfd2 {[%emt 0:14:22]} Bb7 {[%emt 0:04:15]} 12. Nc4 {[%emt 0:03:11]} Qc7 {[%emt 0:16:16]} 13. Bd2 {[%emt 0:07:01]} b5 {[%emt 0:09:36]} 14. Na3 {[%emt 0:01:47]} b4 {[%emt 0:07:02]} 15. Nc4 {[%emt 0:01:24]} Ne5 {[%emt 0:06:40]} 16. Qh5 {[%emt 0:09:01]} Nd7 {[%emt 0:05:59]} 17. Rfe1 {[%emt 0:02:28]} N7f6 {[%emt 0:01:16]} 18. Qe2 {[%emt 0:00:50]} Rfd8 {[%emt 0:02:37]} 19. a5 {[%emt 0:01:11]} Re8 {[%emt 0:02:10]} 20. Ng5 {[%emt 0:04:31]} Bd6 {[%emt 0:01:29]} 21. c3 {[%emt 0:05:16]} bxc3 {[%emt 0:00:38]} 22. bxc3 {[%emt 0:00:09]} h6 {[%emt 0:00:28]} 23. Ne4 {[%emt 0:01:34]} Be7 {[%emt 0:01:15]} 24. Rab1 {[%emt 0:01:07]} Bc6 {[%emt 0:00:31]} 25. f4 {[%emt 0:07:23]} Rab8 {[%emt 0:00:16]} 26. Ne5 {[%emt 0:05:29]} Ba8 {[%emt 0:00:18]} 27. c4 {[%emt 0:01:59]} Nxe4 {[%emt 0:00:47]} 28. Bxe4 {[%emt 0:00:08]} Nf6 {[%emt 0:00:11]} 29. Bxa8 {[%emt 0:00:14]} Rxa8 {[%emt 0:00:08]} 30. Qf3 {[%emt 0:01:32]} Rab8 {[%emt 0:00:35]} 31. Qc6 {[%emt 0:01:29]} Qxc6 {[%emt 0:01:11]} 32. Nxc6 {[%emt 0:00:01]} Ra8 {[%emt 0:00:31]} 33. Bc3 {[%emt 0:01:06]} Kf8 {[%emt 0:00:41]} 34. Rb7 {[%emt 0:00:20]} Bd6 {[%emt 0:00:27]} 35. Be5 {[%emt 0:00:32]} Bxe5 {[%emt 0:00:29]} 36. Nxe5 {[%emt 0:00:25]} Re7 {[%emt 0:00:16]} 37. Rxe7 {[%emt 0:01:23]} Kxe7 {[%emt 0:00:04]} 38. Rb1 {[%emt 0:00:03]} Ne8 {[%emt 0:01:29]} 39. Rb7+ {[%emt 0:00:05]} Kd8 {[%emt 0:00:19]} 40. Rxf7 {[%emt 0:00:00]} Kc8 {[%emt 0:00:00]} 41. Re7 {[%emt 0:03:53]} Nc7 {[%emt 0:03:54]} 42. Rxg7 {[%emt 0:02:47]} Kb7 {[%emt 0:00:43]} 43. Rh7 {[%emt 0:01:12]} Rb8 {[%emt 0:01:19]} 44. h4 1-0

[Event "EYCC Open-U16 2019"]
[Site "Bratislava"]
[Date "2019.08.09"]
[Round "8.46"]
[White "Grutter, Tim"]
[Black "Velkovski, Kristijan"]
[Result "1-0"]
[ECO "C50"]
[WhiteElo "2091"]
[BlackElo "1953"]
[Annotator "NA"]
[PlyCount "67"]
[EventDate "2019.08.02"]
[EventType "swiss"]
[EventCountry "SVK"]
[SourceTitle "playchess.com"]
[Source "ChessBase"]
[SourceQuality "1"]
[TimeControl "40/5400+30:1800+30"]

1. e4 {[%emt 0:00:00]} e5 {[%emt 0:00:00]} 2. Nf3 {[%emt 0:00:00]} Nc6 {[%emt 0:00:00]} 3. Bc4 {[%emt 0:00:00]} Bc5 {[%emt 0:00:00]} 4. d3 {[%emt 0:00:03]} Nf6 {[%emt 0:00:00]} 5. O-O {[%emt 0:00:07]} d6 {[%emt 0:00:14]} 6. c3 {[%emt 0:00:04]} a6 {[%emt 0:00:15]} 7. Bb3 {[%emt 0:00:23]} Ba7 {[%emt 0:00:11]} 8. Nbd2 {[%emt 0:00:04]} O-O {[%emt 0:01:55]} 9. h3 {[%emt 0:00:07]} h6 {[%emt 0:00:05]} 10. Re1 {[%emt 0:00:04]} Nh5 {[%emt 0:04:53]} 11. Nf1 {[%emt 0:00:46]} Qf6 {[%emt 0:00:25]} 12. Be3 {[%emt 0:00:09]} Nf4 {[%emt 0:03:09]} 13. d4 {[%emt 0:02:41]} Ne7 {[%emt 0:05:59]} 14. Ng3 {[%emt 0:01:52]} Neg6 {[%emt 0:00:47]} 15. Bc2 {[%emt 0:01:52]} Re8 {[%emt 0:05:56]} 16. Nf5 {[%emt 0:06:54]} Bxf5 {[%emt 0:20:18]} 17. exf5 {[%emt 0:00:06]} Ne7 {[%emt 0:00:51]} 18. dxe5 {[%emt 0:02:09]} dxe5 {[%emt 0:00:41]} 19. Bxa7 {[%emt 0:01:02]} Rxa7 {[%emt 0:00:25]} 20. Rxe5 {[%emt 0:09:15]} Raa8 {[%emt 0:01:41]} 21. Qd2 {[%emt 0:09:00]} Ned5 {[%emt 0:02:25]} 22. Rxd5 {[%emt 0:02:17]} Nxd5 {[%emt 0:00:08]} 23. Qxd5 {[%emt 0:00:07]} c6 {[%emt 0:01:00]} 24. Qc4 {[%emt 0:10:38]} Re7 {[%emt 0:01:39]} 25. Rd1 {[%emt 0:03:50]} Rae8 {[%emt 0:01:52]} 26. Qf4 {[%emt 0:02:15]} Re2 {[%emt 0:03:12]} 27. Rd6 {[%emt 0:02:54]} R2e6 {[%emt 0:02:55]} 28. Rxe6 {[%emt 0:01:06]} fxe6 {[%emt 0:00:24]} 29. Qe3 {[%emt 0:03:00]} Kh8 {[%emt 0:01:49]} 30. Nd4 {[%emt 0:01:18]} e5 {[%emt 0:00:43]} 31. Ne6 {[%emt 0:00:09]} Re7 {[%emt 0:00:58]} 32. Qa7 {[%emt 0:01:03]} Rf7 {[%emt 0:00:58]} 33. Qb8+ {[%emt 0:00:43]} Kh7 {[%emt 0:00:10]} 34. Qe8 {[%emt 0:00:36]} 1-0

[Event "EYCC Open-U16 2019"]
[Site "Bratislava"]
[Date "2019.08.09"]
[Round "8.47"]
[White "Ampelakiotis, Stavros"]
[Black "Sanger, Jake M"]
[Result "1/2-1/2"]
[ECO "C06"]
[WhiteElo "2080"]
[BlackElo "1867"]
[Annotator "NA"]
[PlyCount "115"]
[EventDate "2019.08.02"]
[EventType "swiss"]
[EventCountry "SVK"]
[SourceTitle "playchess.com"]
[Source "ChessBase"]
[SourceQuality "1"]
[TimeControl "40/5400+30:1800+30"]

1. e4 {[%emt 0:00:00]} e6 {[%emt 0:00:00]} 2. d4 {[%emt 0:00:00]} d5 {[%emt 0:00:00]} 3. Nd2 {[%emt 0:00:00]} Nf6 {[%emt 0:00:00]} 4. e5 {[%emt 0:00:00]} Nfd7 {[%emt 0:00:00]} 5. Bd3 {[%emt 0:00:00]} c5 {[%emt 0:00:00]} 6. c3 {[%emt 0:00:06]} Nc6 {[%emt 0:00:00]} 7. Ne2 {[%emt 0:00:08]} cxd4 {[%emt 0:00:00]} 8. cxd4 {[%emt 0:00:06]} f6 {[%emt 0:00:02]} 9. exf6 {[%emt 0:00:06]} Nxf6 {[%emt 0:00:07]} 10. O-O {[%emt 0:00:10]} Bd6 {[%emt 0:00:07]} 11. Nf3 {[%emt 0:00:07]} Qc7 {[%emt 0:00:05]} 12. g3 {[%emt 0:00:43]} O-O {[%emt 0:00:11]} 13. Bf4 {[%emt 0:00:06]} Bd7 {[%emt 0:01:20]} 14. Re1 {[%emt 0:02:00]} Be8 {[%emt 0:16:43]} 15. Bxd6 {[%emt 0:04:58]} Qxd6 {[%emt 0:00:04]} 16. Nf4 {[%emt 0:00:49]} Bf7 {[%emt 0:00:49]} 17. Ne5 {[%emt 0:05:32]} Rae8 {[%emt 0:09:39]} 18. Bb5 {[%emt 0:11:22]} Nd7 {[%emt 0:13:16]} 19. Nxd7 {[%emt 0:04:23]} Qxd7 {[%emt 0:00:06]} 20. Rc1 {[%emt 0:00:34]} Rc8 {[%emt 0:12:49]} 21. Qa4 {[%emt 0:09:37]} a6 {[%emt 0:04:48]} 22. Bxc6 {[%emt 0:00:25]} Rxc6 {[%emt 0:00:10]} 23. Rxc6 {[%emt 0:00:46]} Qxc6 {[%emt 0:00:05]} 24. Qxc6 {[%emt 0:02:47]} bxc6 {[%emt 0:00:04]} 25. Kf1 {[%emt 0:10:48]} Rb8 {[%emt 0:03:00]} 26. b3 {[%emt 0:04:17]} Rb4 {[%emt 0:05:17]} 27. Rc1 {[%emt 0:11:24]} g5 {[%emt 0:02:13]} 28. Ne2 {[%emt 0:04:21]} Be8 {[%emt 0:00:32]} 29. f4 {[%emt 0:11:17]} gxf4 {[%emt 0:04:30]} 30. gxf4 {[%emt 0:00:08]} a5 {[%emt 0:03:40]} 31. Rc3 {[%emt 0:04:11]} a4 {[%emt 0:05:18]} 32. bxa4 {[%emt 0:00:06]} Rxa4 {[%emt 0:00:08]} 33. a3 {[%emt 0:00:02]} Bh5 {[%emt 0:03:35]} 34. Rd3 {[%emt 0:07:47]} Rc4 {[%emt 0:05:31]} 35. Ke1 {[%emt 0:04:22]} Bxe2 {[%emt 0:04:43]} 36. Kxe2 {[%emt 0:00:04]} Rc2+ {[%emt 0:00:50]} 37. Rd2 {[%emt 0:00:41]} Rc3 {[%emt 0:01:08]} 38. Ra2 {[%emt 0:03:38]} Rh3 {[%emt 0:00:05]} 39. Ke1 {[%emt 0:00:26]} Re3+ {[%emt 0:02:33]} 40. Kf2 {[%emt 0:00:00]} Rh3 {[%emt 0:00:00]} 41. Kg2 {[%emt 0:11:51]} Rd3 {[%emt 0:16:58]} 42. Rc2 {[%emt 0:07:17]} Rxd4 {[%emt 0:01:17]} 43. Rxc6 {[%emt 0:00:04]} Kf7 {[%emt 0:05:49]} 44. Rc7+ {[%emt 0:02:54]} Kf6 {[%emt 0:05:15]} 45. Rxh7 {[%emt 0:06:56]} Rxf4 {[%emt 0:00:09]} 46. Rh3 {[%emt 0:00:07]} Ra4 {[%emt 0:01:09]} 47. Rf3+ {[%emt 0:01:23]} Kg5 {[%emt 0:01:13]} 48. Re3 {[%emt 0:00:45]} Kf5 {[%emt 0:00:30]} 49. Rf3+ {[%emt 0:00:56]} Ke4 {[%emt 0:00:49]} 50. h4 {[%emt 0:00:54]} d4 {[%emt 0:01:37]} 51. Kf2 {[%emt 0:01:42]} e5 {[%emt 0:03:02]} 52. h5 {[%emt 0:00:37]} d3 {[%emt 0:01:05]} 53. Rh3 {[%emt 0:02:08]} Rxa3 {[%emt 0:00:10]} 54. Rh4+ {[%emt 0:00:34]} Kf5 {[%emt 0:00:35]} 55. h6 {[%emt 0:00:30]} Ra8 {[%emt 0:00:05]} 56. h7 {[%emt 0:00:29]} Rh8 {[%emt 0:00:09]} 57. Ke3 {[%emt 0:00:21]} Kg6 {[%emt 0:02:12]} 58. Ke4 1/2-1/2

[Event "EYCC Open-U16 2019"]
[Site "Bratislava"]
[Date "2019.08.09"]
[Round "8.48"]
[White "Holly, Andrej"]
[Black "Keprt, Tomas"]
[Result "1-0"]
[ECO "B35"]
[WhiteElo "2046"]
[BlackElo "1438"]
[Annotator "NA"]
[PlyCount "85"]
[EventDate "2019.08.02"]
[EventType "swiss"]
[EventCountry "SVK"]
[SourceTitle "playchess.com"]
[Source "ChessBase"]
[SourceQuality "1"]
[TimeControl "40/5400+30:1800+30"]

1. e4 {[%emt 0:00:00]} c5 {[%emt 0:00:00]} 2. Nf3 {[%emt 0:00:00]} Nc6 {[%emt 0:00:00]} 3. Nc3 {[%emt 0:00:10]} g6 {[%emt 0:00:05]} 4. d4 {[%emt 0:00:09]} cxd4 {[%emt 0:00:06]} 5. Nxd4 {[%emt 0:00:02]} Bg7 {[%emt 0:00:09]} 6. Be3 {[%emt 0:00:53]} Nf6 {[%emt 0:00:23]} 7. Bc4 {[%emt 0:00:21]} O-O {[%emt 0:00:25]} 8. Bb3 {[%emt 0:00:19]} d6 {[%emt 0:02:55]} 9. f3 {[%emt 0:00:56]} Bd7 {[%emt 0:00:38]} 10. Qd2 {[%emt 0:00:10]} Re8 {[%emt 0:00:22]} 11. O-O-O {[%emt 0:02:37]} a6 {[%emt 0:02:36]} 12. h4 {[%emt 0:12:07]} h5 {[%emt 0:02:51]} 13. Nxc6 {[%emt 0:08:56]} bxc6 {[%emt 0:04:40]} 14. Bh6 {[%emt 0:02:40]} Bh8 {[%emt 0:00:35]} 15. g4 {[%emt 0:04:46]} Qa5 {[%emt 0:20:45]} 16. gxh5 {[%emt 0:05:14]} Qxh5 {[%emt 0:00:36]} 17. Rdg1 {[%emt 0:03:45]} Bg7 {[%emt 0:03:15]} 18. Bxg7 {[%emt 0:13:24]} Kxg7 {[%emt 0:00:05]} 19. Qf2 {[%emt 0:02:50]} Rh8 {[%emt 0:02:53]} 20. Ne2 {[%emt 0:03:58]} Qh6+ {[%emt 0:09:30]} 21. Kb1 {[%emt 0:00:31]} Qd2 {[%emt 0:01:36]} 22. Rd1 {[%emt 0:07:10]} Qb4 {[%emt 0:05:41]} 23. a3 {[%emt 0:00:48]} Qb5 {[%emt 0:00:31]} 24. Rdg1 {[%emt 0:06:35]} c5 {[%emt 0:08:22]} 25. Nc3 {[%emt 0:03:46]} Qa5 {[%emt 0:04:59]} 26. Qg2 {[%emt 0:03:14]} Rab8 {[%emt 0:03:21]} 27. Bxf7 {[%emt 0:11:35]} Kxf7 {[%emt 0:03:33]} 28. Qxg6+ {[%emt 0:00:01]} Ke6 {[%emt 0:00:14]} 29. Qf5+ {[%emt 0:00:02]} Kf7 {[%emt 0:00:30]} 30. Qg6+ {[%emt 0:00:00]} Ke6 {[%emt 0:00:14]} 31. Nd5 {[%emt 0:04:19]} Rhg8 {[%emt 0:14:22]} 32. Nf4+ {[%emt 0:00:17]} Ke5 {[%emt 0:00:12]} 33. Qh6 {[%emt 0:03:56]} Qb5 {[%emt 0:05:23]} 34. Rg5+ {[%emt 0:00:40]} Kd4 {[%emt 0:02:46]} 35. Rd1+ {[%emt 0:00:21]} Ke3 {[%emt 0:01:32]} 36. Nd5+ {[%emt 0:00:42]} Kf2 {[%emt 0:00:50]} 37. Rg2+ {[%emt 0:00:45]} Rxg2 {[%emt 0:00:31]} 38. Qe3+ {[%emt 0:00:24]} Kg3 {[%emt 0:00:32]} 39. Qf4+ {[%emt 0:00:18]} Kf2 {[%emt 0:00:24]} 40. Qe3+ {[%emt 0:00:00]} Kg3 {[%emt 0:00:00]} 41. Qf4+ {[%emt 0:20:47]} Kf2 {[%emt 0:00:16]} 42. Rd2+ {[%emt 0:07:04]} Ke1 {[%emt 0:02:09]} 43. Qe3+ {[%emt 0:00:25]} 1-0